[Event "Titled Tuesday Blitz November 14 Late 2023"]
[White "Leiva, Gianmarco"]
[Black "chessjazda"]
[WhiteFideId "3804399"]
[WhiteElo "2613"]
[BlackElo "2336"]
[Result "1/2-1/2"]
[Round "1"]
[TimeControl "180+1"]
[Date "2023.11.14"]
[WhiteClock "0:00:13"]
[BlackClock "0:00:31"]
[Board "114"]

1. e4 {[%clk 0:02:57]}  e5 {[%clk 0:02:58]} 2. Nf3 {[%clk 0:02:55]}  Nc6 {[%clk 0:02:58]} 3. Bc4 {[%clk 0:02:55]}  Bc5 {[%clk 0:02:57]} 4. d3 {[%clk 0:02:55]}  d6 {[%clk 0:02:55]} 5. O-O {[%clk 0:02:55]}  Bg4 {[%clk 0:02:53]} 6. c3 {[%clk 0:02:55]}  Nf6 {[%clk 0:02:53]} 7. h3 {[%clk 0:02:38]}  Be6 {[%clk 0:02:52]} 8. Bxe6 {[%clk 0:02:33]}  fxe6 {[%clk 0:02:53]} 9. d4 {[%clk 0:02:28]}  exd4 {[%clk 0:02:53]} 10. cxd4 {[%clk 0:02:29]}  Bb6 {[%clk 0:02:54]} 11. Nc3 {[%clk 0:02:28]}  O-O {[%clk 0:02:53]} 12. Be3 {[%clk 0:02:28]}  e5 {[%clk 0:02:50]} 13. dxe5 {[%clk 0:02:26]}  Nxe5 {[%clk 0:02:50]} 14. Bxb6 {[%clk 0:02:24]}  axb6 {[%clk 0:02:51]} 15. Nd4 {[%clk 0:02:23]}  Qd7 {[%clk 0:02:46]} 16. f4 {[%clk 0:02:18]}  Nc6 {[%clk 0:02:45]} 17. Qb3+ {[%clk 0:02:05]}  Kh8 {[%clk 0:02:43]} 18. Ne6 {[%clk 0:02:04]}  Rfe8 {[%clk 0:02:36]} 19. Ng5 {[%clk 0:01:59]}  Rf8 {[%clk 0:02:34]} 20. Rae1 {[%clk 0:01:42]}  Rae8 {[%clk 0:02:31]} 21. Qd1 {[%clk 0:01:34]}  h6 {[%clk 0:02:24]} 22. Nf3 {[%clk 0:01:34]}  Qf7 {[%clk 0:02:18]} 23. a3 {[%clk 0:01:23]}  Nh5 {[%clk 0:02:04]} 24. h4 {[%clk 0:01:23]}  Nxf4 {[%clk 0:01:51]} 25. Nd5 {[%clk 0:01:17]}  Qg6 {[%clk 0:01:50]} 26. Qd2 {[%clk 0:01:07]}  Qg3 {[%clk 0:01:40]} 27. Nxc7 {[%clk 0:00:52]}  Ne5 {[%clk 0:01:39]} 28. Nxe8 {[%clk 0:00:42]}  Rxe8 {[%clk 0:01:39]} 29. Nxe5 {[%clk 0:00:38]}  dxe5 {[%clk 0:01:35]} 30. Re3 {[%clk 0:00:26]}  Qxh4 {[%clk 0:01:30]} 31. Qe1 {[%clk 0:00:24]}  Qh5 {[%clk 0:01:16]} 32. Rff3 {[%clk 0:00:16]}  Rd8 {[%clk 0:01:12]} 33. g3 {[%clk 0:00:14]}  Nh3+ {[%clk 0:01:05]} 34. Kg2 {[%clk 0:00:13]}  Ng5 {[%clk 0:01:04]} 35. g4 {[%clk 0:00:07]}  Nxf3 {[%clk 0:00:54]} 36. gxh5 {[%clk 0:00:07]}  Nxe1+ {[%clk 0:00:54]} 37. Rxe1 {[%clk 0:00:08]}  Rd2+ {[%clk 0:00:54]} 38. Kg3 {[%clk 0:00:09]}  Rxb2 {[%clk 0:00:55]} 39. Kg4 {[%clk 0:00:08]}  Rf2 {[%clk 0:00:52]} 40. Rb1 {[%clk 0:00:08]}  Rf4+ {[%clk 0:00:53]} 41. Kg3 {[%clk 0:00:07]}  Rxe4 {[%clk 0:00:54]} 42. Rxb6 {[%clk 0:00:08]}  Ra4 {[%clk 0:00:54]} 43. Rxb7 {[%clk 0:00:08]}  Rxa3+ {[%clk 0:00:54]} 44. Kg4 {[%clk 0:00:08]}  Ra4+ {[%clk 0:00:53]} 45. Kf5 {[%clk 0:00:08]}  Rf4+ {[%clk 0:00:53]} 46. Kxe5 {[%clk 0:00:07]}  Rh4 {[%clk 0:00:52]} 47. Kf5 {[%clk 0:00:04]}  Rxh5+ {[%clk 0:00:52]} 48. Kg4 {[%clk 0:00:04]}  Rg5+ {[%clk 0:00:53]} 49. Kh4 {[%clk 0:00:05]}  Kh7 {[%clk 0:00:53]} 50. Rb6 {[%clk 0:00:05]}  Ra5 {[%clk 0:00:54]} 51. Rc6 {[%clk 0:00:05]}  Rb5 {[%clk 0:00:52]} 52. Rd6 {[%clk 0:00:05]}  Kg8 {[%clk 0:00:53]} 53. Rc6 {[%clk 0:00:05]}  Kh7 {[%clk 0:00:51]} 54. Ra6 {[%clk 0:00:05]}  Rd5 {[%clk 0:00:50]} 55. Re6 {[%clk 0:00:05]}  h5 {[%clk 0:00:50]} 56. Ra6 {[%clk 0:00:03]}  g5+ {[%clk 0:00:50]} 57. Kxh5 {[%clk 0:00:03]}  Rf5 {[%clk 0:00:51]} 58. Ra7+ {[%clk 0:00:03]}  Kg8 {[%clk 0:00:50]} 59. Kg6 {[%clk 0:00:04]}  Rf8 {[%clk 0:00:48]} 60. Kxg5 {[%clk 0:00:04]}  Re8 {[%clk 0:00:48]} 61. Kf6 {[%clk 0:00:04]}  Rf8+ {[%clk 0:00:48]} 62. Kg5 {[%clk 0:00:05]}  Re8 {[%clk 0:00:48]} 63. Kf5 {[%clk 0:00:05]}  Rd8 {[%clk 0:00:48]} 64. Ke6 {[%clk 0:00:04]}  Re8+ {[%clk 0:00:48]} 65. Kf6 {[%clk 0:00:05]}  Rf8+ {[%clk 0:00:48]} 66. Kg6 {[%clk 0:00:06]}  Re8 {[%clk 0:00:48]} 67. Rg7+ {[%clk 0:00:07]}  Kh8 {[%clk 0:00:47]} 68. Rd7 {[%clk 0:00:08]}  Kg8 {[%clk 0:00:46]} 69. Rd6 {[%clk 0:00:08]}  Ra8 {[%clk 0:00:42]} 70. Kh6 {[%clk 0:00:07]}  Re8 {[%clk 0:00:41]} 71. Rf6 {[%clk 0:00:08]}  Ra8 {[%clk 0:00:41]} 72. Rg6+ {[%clk 0:00:08]}  Kh8 {[%clk 0:00:41]} 73. Kh5 {[%clk 0:00:08]}  Ra5+ {[%clk 0:00:40]} 74. Kh6 {[%clk 0:00:08]}  Ra8 {[%clk 0:00:39]} 75. Rf6 {[%clk 0:00:09]}  Kg8 {[%clk 0:00:39]} 76. Re6 {[%clk 0:00:08]}  Rf8 {[%clk 0:00:38]} 77. Re7 {[%clk 0:00:08]}  Rf7 {[%clk 0:00:37]} 78. Re6 {[%clk 0:00:08]}  Rf8 {[%clk 0:00:37]} 79. Kg6 {[%clk 0:00:08]}  Ra8 {[%clk 0:00:37]} 80. Rd6 {[%clk 0:00:09]}  Rb8 {[%clk 0:00:36]} 81. Rc6 {[%clk 0:00:09]}  Ra8 {[%clk 0:00:36]} 82. Rb6 {[%clk 0:00:09]}  Rc8 {[%clk 0:00:36]} 83. Ra6 {[%clk 0:00:10]}  Rd8 {[%clk 0:00:35]} 84. Kf6 {[%clk 0:00:10]}  Rf8+ {[%clk 0:00:35]} 85. Ke6 {[%clk 0:00:11]}  Re8+ {[%clk 0:00:36]} 86. Kf5 {[%clk 0:00:11]}  Rf8+ {[%clk 0:00:36]} 87. Kg5 {[%clk 0:00:11]}  Re8 {[%clk 0:00:36]} 88. Rc6 {[%clk 0:00:12]}  Rd8 {[%clk 0:00:35]} 89. Kf6 {[%clk 0:00:12]}  Rf8+ {[%clk 0:00:35]} 90. Kg6 {[%clk 0:00:13]}  Re8 {[%clk 0:00:36]} 91. Rc7 {[%clk 0:00:10]}  Rd8 {[%clk 0:00:35]} 92. Rg7+ {[%clk 0:00:11]}  Kf8 {[%clk 0:00:34]} 93. Rh7 {[%clk 0:00:12]}  Kg8 {[%clk 0:00:34]} 94. Re7 {[%clk 0:00:12]}  Rd6+ {[%clk 0:00:34]} 95. Kg5 {[%clk 0:00:12]}  Ra6 {[%clk 0:00:34]} 96. Rd7 {[%clk 0:00:09]}  Rb6 {[%clk 0:00:34]} 97. Kf5 {[%clk 0:00:10]}  Ra6 {[%clk 0:00:34]} 98. Rd8+ {[%clk 0:00:10]}  Kf7 {[%clk 0:00:34]} 99. Rd7+ {[%clk 0:00:11]}  Kg8 {[%clk 0:00:33]} 100. Re7 {[%clk 0:00:11]}  Kf8 {[%clk 0:00:33]} 101. Re6 {[%clk 0:00:12]}  Ra5+ {[%clk 0:00:33]} 102. Kf6 {[%clk 0:00:12]}  Ra8 {[%clk 0:00:32]} 103. Rd6 {[%clk 0:00:13]}  Re8 {[%clk 0:00:32]} 104. Rd7 {[%clk 0:00:13]}  Ra8 {[%clk 0:00:31]} 105. Rb7 {[%clk 0:00:13]}  Ra6+ {[%clk 0:00:31]} 106. Kf5 {[%clk 0:00:13]}  Ke8 {[%clk 0:00:31]} 107. Ke5 {[%clk 0:00:13]}  Kd8 {[%clk 0:00:31]} 108. Kd5 {[%clk 0:00:13]}  Kc8 {[%clk 0:00:31]} 109. Rh7 {[%clk 0:00:13]}  Kd8 {[%clk 0:00:31]} 110. Kc5 {[%clk 0:00:13]} 1/2-1/2


[Site "https://www.chess.com"]

[Event "Titled Tuesday Blitz November 14 Late 2023"]
[White "Yelisieiev, Yevhenii"]
[Black "Doluhanova, Evgeniya"]
[WhiteFideId "14139642"]
[BlackFideId "14112035"]
[WhiteElo "2604"]
[BlackElo "2335"]
[Result "0-1"]
[Round "1"]
[TimeControl "180+1"]
[Date "2023.11.14"]
[WhiteClock "0:00:02"]
[BlackClock "0:00:06"]
[Board "116"]

1. d4 {[%clk 0:02:59]}  Nf6 {[%clk 0:02:58]} 2. Nf3 {[%clk 0:02:57]}  e6 {[%clk 0:02:58]} 3. c4 {[%clk 0:02:57]}  d5 {[%clk 0:02:56]} 4. Nc3 {[%clk 0:02:56]}  dxc4 {[%clk 0:02:56]} 5. e4 {[%clk 0:02:54]}  c5 {[%clk 0:02:52]} 6. d5 {[%clk 0:02:29]}  exd5 {[%clk 0:02:48]} 7. exd5 {[%clk 0:02:29]}  Bg4 {[%clk 0:02:44]} 8. Bxc4 {[%clk 0:02:27]}  Bd6 {[%clk 0:02:32]} 9. h3 {[%clk 0:02:23]}  Bxf3 {[%clk 0:02:28]} 10. Qxf3 {[%clk 0:02:22]}  Nbd7 {[%clk 0:02:27]} 11. O-O {[%clk 0:01:59]}  O-O {[%clk 0:02:22]} 12. Ne4 {[%clk 0:01:36]}  Nxe4 {[%clk 0:02:20]} 13. Qxe4 {[%clk 0:01:35]}  Re8 {[%clk 0:02:06]} 14. Qf5 {[%clk 0:01:32]}  a6 {[%clk 0:01:49]} 15. a4 {[%clk 0:01:17]}  Ne5 {[%clk 0:01:39]} 16. Ba2 {[%clk 0:01:09]}  b5 {[%clk 0:01:34]} 17. Bf4 {[%clk 0:00:44]}  g6 {[%clk 0:01:23]} 18. Qg5 {[%clk 0:00:34]}  Qxg5 {[%clk 0:01:15]} 19. Bxg5 {[%clk 0:00:34]}  Nd3 {[%clk 0:01:13]} 20. b3 {[%clk 0:00:24]}  Kg7 {[%clk 0:00:59]} 21. Rad1 {[%clk 0:00:20]}  Nb4 {[%clk 0:00:57]} 22. Bb1 {[%clk 0:00:20]}  h6 {[%clk 0:00:54]} 23. Be3 {[%clk 0:00:17]}  Rad8 {[%clk 0:00:51]} 24. Rfe1 {[%clk 0:00:15]}  f5 {[%clk 0:00:40]} 25. g3 {[%clk 0:00:09]}  Re7 {[%clk 0:00:32]} 26. Bc1 {[%clk 0:00:06]}  Rxe1+ {[%clk 0:00:31]} 27. Rxe1 {[%clk 0:00:06]}  Nxd5 {[%clk 0:00:29]} 28. Bb2+ {[%clk 0:00:07]}  Kf7 {[%clk 0:00:29]} 29. axb5 {[%clk 0:00:07]}  axb5 {[%clk 0:00:28]} 30. Bd3 {[%clk 0:00:08]}  Nc7 {[%clk 0:00:26]} 31. Ra1 {[%clk 0:00:08]}  Bxg3 {[%clk 0:00:22]} 32. fxg3 {[%clk 0:00:08]}  Rxd3 {[%clk 0:00:22]} 33. Ra7 {[%clk 0:00:09]}  Rd7 {[%clk 0:00:19]} 34. Be5 {[%clk 0:00:09]}  Ke6 {[%clk 0:00:17]} 35. Bxc7 {[%clk 0:00:07]}  Kd5 {[%clk 0:00:15]} 36. Kf2 {[%clk 0:00:06]}  c4 {[%clk 0:00:15]} 37. bxc4+ {[%clk 0:00:06]}  Kxc4 {[%clk 0:00:15]} 38. Bb6 {[%clk 0:00:06]}  Rd2+ {[%clk 0:00:13]} 39. Kf3 {[%clk 0:00:06]}  Rd3+ {[%clk 0:00:14]} 40. Be3 {[%clk 0:00:06]}  g5 {[%clk 0:00:13]} 41. Rc7+ {[%clk 0:00:06]}  Kb3 {[%clk 0:00:13]} 42. Ke2 {[%clk 0:00:07]}  Rd6 {[%clk 0:00:10]} 43. Rb7 {[%clk 0:00:04]}  b4 {[%clk 0:00:09]} 44. Bc5 {[%clk 0:00:04]}  Re6+ {[%clk 0:00:08]} 45. Kf3 {[%clk 0:00:05]}  Re4 {[%clk 0:00:08]} 46. Bf8 {[%clk 0:00:04]}  h5 {[%clk 0:00:08]} 47. Rb5 {[%clk 0:00:05]}  g4+ {[%clk 0:00:08]} 48. hxg4 {[%clk 0:00:05]}  hxg4+ {[%clk 0:00:08]} 49. Kf2 {[%clk 0:00:06]}  f4 {[%clk 0:00:07]} 50. gxf4 {[%clk 0:00:02]}  Rxf4+ {[%clk 0:00:06]} 51. Kg3 {[%clk 0:00:03]}  Rxf8 {[%clk 0:00:07]} 52. Kxg4 {[%clk 0:00:03]}  Kc3 {[%clk 0:00:07]} 53. Rb7 {[%clk 0:00:04]}  b3 {[%clk 0:00:07]} 54. Rc7+ {[%clk 0:00:04]}  Kb2 {[%clk 0:00:07]} 55. Kg3 {[%clk 0:00:03]}  Kb1 {[%clk 0:00:06]} 56. Rb7 {[%clk 0:00:03]}  b2 {[%clk 0:00:07]} 57. Kg2 {[%clk 0:00:04]}  Rc8 {[%clk 0:00:07]} 58. Rf7 {[%clk 0:00:02]}  Kc1 {[%clk 0:00:08]} 59. Rf1+ {[%clk 0:00:02]}  Kc2 {[%clk 0:00:08]} 60. Rf2+ {[%clk 0:00:03]}  Kb3 {[%clk 0:00:08]} 61. Rf3+ {[%clk 0:00:03]}  Rc3 {[%clk 0:00:08]} 62. Rf1 {[%clk 0:00:04]}  Ka2 {[%clk 0:00:07]} 63. Rf8 {[%clk 0:00:03]}  b1=Q {[%clk 0:00:07]} 64. Ra8+ {[%clk 0:00:03]}  Ra3 {[%clk 0:00:07]} 65. Rb8 {[%clk 0:00:02]}  Qxb8 {[%clk 0:00:06]} 0-1


[Site "https://www.chess.com"]

[Event "Titled Tuesday Blitz November 14 Late 2023"]
[White "Lopez Del Alamo, Antonio"]
[Black "Roberson, Peter T"]
[WhiteFideId "2227339"]
[BlackFideId "412384"]
[WhiteElo "2335"]
[BlackElo "2604"]
[Result "0-1"]
[Round "1"]
[TimeControl "180+1"]
[Date "2023.11.14"]
[WhiteClock "0:00:00"]
[BlackClock "0:01:24"]
[Board "117"]

1. e4 {[%clk 0:02:56]}  d6 {[%clk 0:02:59]} 2. d4 {[%clk 0:02:50]}  Nf6 {[%clk 0:02:59]} 3. Nc3 {[%clk 0:02:49]}  c6 {[%clk 0:03:00]} 4. Nf3 {[%clk 0:02:42]}  Bg4 {[%clk 0:02:59]} 5. Be2 {[%clk 0:02:39]}  e6 {[%clk 0:02:59]} 6. Be3 {[%clk 0:02:38]}  Be7 {[%clk 0:02:58]} 7. Qd2 {[%clk 0:02:37]}  O-O {[%clk 0:02:58]} 8. O-O-O {[%clk 0:02:32]}  d5 {[%clk 0:02:59]} 9. e5 {[%clk 0:02:17]}  Nfd7 {[%clk 0:02:59]} 10. h3 {[%clk 0:02:13]}  Bxf3 {[%clk 0:02:59]} 11. gxf3 {[%clk 0:02:10]}  b5 {[%clk 0:03:00]} 12. f4 {[%clk 0:02:05]}  Nb6 {[%clk 0:02:57]} 13. Rdg1 {[%clk 0:01:57]}  Re8 {[%clk 0:02:55]} 14. h4 {[%clk 0:01:45]}  b4 {[%clk 0:02:54]} 15. Nd1 {[%clk 0:01:41]}  Nc4 {[%clk 0:02:55]} 16. Qe1 {[%clk 0:01:36]}  Qa5 {[%clk 0:02:50]} 17. Bxc4 {[%clk 0:01:30]}  dxc4 {[%clk 0:02:50]} 18. Kb1 {[%clk 0:01:31]}  Nd7 {[%clk 0:02:43]} 19. h5 {[%clk 0:01:24]}  c3 {[%clk 0:02:42]} 20. b3 {[%clk 0:01:21]}  Qd5 {[%clk 0:02:18]} 21. f3 {[%clk 0:01:09]}  a5 {[%clk 0:02:17]} 22. Qg3 {[%clk 0:01:06]}  Bf8 {[%clk 0:02:17]} 23. f5 {[%clk 0:00:58]}  exf5 {[%clk 0:02:16]} 24. Bh6 {[%clk 0:00:42]}  g6 {[%clk 0:02:01]} 25. hxg6 {[%clk 0:00:41]}  fxg6 {[%clk 0:01:59]} 26. Bf4 {[%clk 0:00:27]}  Qf7 {[%clk 0:01:52]} 27. Ne3 {[%clk 0:00:20]}  Bg7 {[%clk 0:01:44]} 28. Bh6 {[%clk 0:00:19]}  Nf8 {[%clk 0:01:43]} 29. Bxg7 {[%clk 0:00:15]}  Kxg7 {[%clk 0:01:43]} 30. Qg5 {[%clk 0:00:14]}  Kh8 {[%clk 0:01:35]} 31. Rh6 {[%clk 0:00:09]}  a4 {[%clk 0:01:31]} 32. Rgh1 {[%clk 0:00:08]}  axb3 {[%clk 0:01:30]} 33. cxb3 {[%clk 0:00:08]}  Ra7 {[%clk 0:01:27]} 34. Ng4 {[%clk 0:00:00]}  fxg4 {[%clk 0:01:24]} 0-1


[Site "https://www.chess.com"]

[Event "Titled Tuesday Blitz November 14 Late 2023"]
[White "Bazzano, Sebastian"]
[Black "Martinez Reyes, Pedro Ramon"]
[WhiteFideId "104566"]
[BlackFideId "3901807"]
[WhiteElo "2321"]
[BlackElo "2591"]
[Result "0-1"]
[Round "1"]
[TimeControl "180+1"]
[Date "2023.11.14"]
[WhiteClock "0:00:00"]
[BlackClock "0:01:05"]
[Board "121"]

1. d4 {[%clk 0:03:00]}  Nf6 {[%clk 0:02:55]} 2. Bf4 {[%clk 0:02:59]}  c6 {[%clk 0:02:51]} 3. c3 {[%clk 0:02:57]}  Qb6 {[%clk 0:02:40]} 4. Qb3 {[%clk 0:02:55]}  d6 {[%clk 0:02:39]} 5. Nd2 {[%clk 0:02:52]}  Be6 {[%clk 0:02:21]} 6. Qc2 {[%clk 0:02:52]}  g6 {[%clk 0:02:20]} 7. e4 {[%clk 0:02:51]}  Bg7 {[%clk 0:02:19]} 8. Ngf3 {[%clk 0:02:52]}  O-O {[%clk 0:02:19]} 9. Bd3 {[%clk 0:02:49]}  Bg4 {[%clk 0:02:18]} 10. h3 {[%clk 0:02:45]}  Bxf3 {[%clk 0:02:19]} 11. Nxf3 {[%clk 0:02:45]}  Nbd7 {[%clk 0:02:19]} 12. O-O {[%clk 0:02:39]}  Rfe8 {[%clk 0:02:19]} 13. Be3 {[%clk 0:02:29]}  Qc7 {[%clk 0:02:18]} 14. Rad1 {[%clk 0:02:24]}  Nh5 {[%clk 0:02:14]} 15. Rfe1 {[%clk 0:02:14]}  a5 {[%clk 0:02:13]} 16. Qd2 {[%clk 0:02:02]}  e5 {[%clk 0:02:10]} 17. Bh6 {[%clk 0:01:53]}  Bxh6 {[%clk 0:01:56]} 18. Qxh6 {[%clk 0:01:51]}  f6 {[%clk 0:01:57]} 19. Bc4+ {[%clk 0:01:41]}  Kh8 {[%clk 0:01:56]} 20. dxe5 {[%clk 0:01:41]}  Nxe5 {[%clk 0:01:52]} 21. Nxe5 {[%clk 0:01:35]}  dxe5 {[%clk 0:01:51]} 22. Rd2 {[%clk 0:01:15]}  Red8 {[%clk 0:01:42]} 23. Red1 {[%clk 0:01:14]}  b5 {[%clk 0:01:41]} 24. Rxd8+ {[%clk 0:00:53]}  Rxd8 {[%clk 0:01:42]} 25. Rxd8+ {[%clk 0:00:53]}  Qxd8 {[%clk 0:01:43]} 26. Bf7 {[%clk 0:00:53]}  Nf4 {[%clk 0:01:18]} 27. g3 {[%clk 0:00:43]}  Qe7 {[%clk 0:01:18]} 28. gxf4 {[%clk 0:00:30]}  Qxf7 {[%clk 0:01:18]} 29. fxe5 {[%clk 0:00:29]}  fxe5 {[%clk 0:01:18]} 30. Qg5 {[%clk 0:00:30]}  Qe6 {[%clk 0:01:08]} 31. Kg2 {[%clk 0:00:24]}  Kg7 {[%clk 0:01:09]} 32. a3 {[%clk 0:00:22]}  a4 {[%clk 0:01:08]} 33. Qd8 {[%clk 0:00:19]}  Qf6 {[%clk 0:01:08]} 34. Qxf6+ {[%clk 0:00:16]}  Kxf6 {[%clk 0:01:09]} 35. Kg3 {[%clk 0:00:15]}  g5 {[%clk 0:01:07]} 36. f3 {[%clk 0:00:14]}  h5 {[%clk 0:01:06]} 37. h4 {[%clk 0:00:12]}  Kg6 {[%clk 0:01:06]} 38. Kh3 {[%clk 0:00:10]}  gxh4 {[%clk 0:01:04]} 39. Kxh4 {[%clk 0:00:10]}  Kh6 {[%clk 0:01:05]} 40. Kg3 {[%clk 0:00:02]}  Kg5 {[%clk 0:01:05]} 41. Kh3 {[%clk 0:00:02]}  Kf4 {[%clk 0:01:05]} 42. Kg2 {[%clk 0:00:00]}  h4 {[%clk 0:01:05]} 0-1


[Site "https://www.chess.com"]

[Event "Titled Tuesday Blitz November 14 Late 2023"]
[White "Szente Varga, Fruzsina"]
[Black "Tikhonov, Viacheslav"]
[WhiteFideId "712264"]
[BlackFideId "44196407"]
[WhiteElo "2320"]
[BlackElo "2590"]
[Result "1-0"]
[Round "1"]
[TimeControl "180+1"]
[Date "2023.11.14"]
[WhiteClock "0:00:25"]
[BlackClock "0:00:00"]
[Board "123"]

1. e4 {[%clk 0:03:00]}  c5 {[%clk 0:02:59]} 2. Nf3 {[%clk 0:03:00]}  g6 {[%clk 0:02:58]} 3. Nc3 {[%clk 0:02:56]}  Bg7 {[%clk 0:02:53]} 4. Bc4 {[%clk 0:02:50]}  Nc6 {[%clk 0:02:52]} 5. O-O {[%clk 0:02:45]}  e5 {[%clk 0:02:48]} 6. d3 {[%clk 0:02:41]}  h6 {[%clk 0:02:47]} 7. Be3 {[%clk 0:02:24]}  d6 {[%clk 0:02:45]} 8. Qd2 {[%clk 0:02:23]}  Nge7 {[%clk 0:02:45]} 9. a3 {[%clk 0:02:13]}  Nd4 {[%clk 0:02:25]} 10. Ne1 {[%clk 0:01:50]}  g5 {[%clk 0:02:14]} 11. Ne2 {[%clk 0:01:40]}  O-O {[%clk 0:02:09]} 12. c3 {[%clk 0:01:39]}  Ndc6 {[%clk 0:02:05]} 13. h4 {[%clk 0:01:35]}  gxh4 {[%clk 0:01:40]} 14. Bxh6 {[%clk 0:01:34]}  Ng6 {[%clk 0:01:41]} 15. Bg5 {[%clk 0:01:29]}  Qe8 {[%clk 0:01:26]} 16. Nf3 {[%clk 0:01:26]}  h3 {[%clk 0:01:23]} 17. Bh6 {[%clk 0:01:07]}  Be6 {[%clk 0:01:19]} 18. Bxg7 {[%clk 0:00:59]}  Kxg7 {[%clk 0:01:18]} 19. Bxe6 {[%clk 0:00:58]}  Qxe6 {[%clk 0:01:18]} 20. Ng5 {[%clk 0:00:58]}  Qg4 {[%clk 0:00:53]} 21. Nxh3 {[%clk 0:00:58]}  f6 {[%clk 0:00:50]} 22. Ng3 {[%clk 0:00:58]}  Nce7 {[%clk 0:00:28]} 23. Qe2 {[%clk 0:00:56]}  Qe6 {[%clk 0:00:20]} 24. f4 {[%clk 0:00:38]}  exf4 {[%clk 0:00:17]} 25. Nxf4 {[%clk 0:00:39]}  Nxf4 {[%clk 0:00:13]} 26. Rxf4 {[%clk 0:00:40]}  Kf7 {[%clk 0:00:08]} 27. Qh5+ {[%clk 0:00:35]}  Ng6 {[%clk 0:00:08]} 28. Qh7+ {[%clk 0:00:35]}  Ke8 {[%clk 0:00:08]} 29. Qxg6+ {[%clk 0:00:35]}  Kd7 {[%clk 0:00:07]} 30. Raf1 {[%clk 0:00:31]}  Rg8 {[%clk 0:00:06]} 31. Qh7+ {[%clk 0:00:31]}  Kc6 {[%clk 0:00:06]} 32. Nf5 {[%clk 0:00:31]}  Rg5 {[%clk 0:00:04]} 33. d4 {[%clk 0:00:25]}  cxd4 {[%clk 0:00:00]} 34. Nxd4+ {[%clk 0:00:25]} 1-0


[Site "https://www.chess.com"]

[Event "Titled Tuesday Blitz November 14 Late 2023"]
[White "Toncheva, Nadya"]
[Black "Spichkin, Alexander"]
[WhiteFideId "2924056"]
[BlackFideId "4144074"]
[WhiteElo "2587"]
[BlackElo "2318"]
[Result "0-1"]
[Round "1"]
[TimeControl "180+1"]
[Date "2023.11.14"]
[WhiteClock "0:00:13"]
[BlackClock "0:01:32"]
[Board "124"]

1. Nf3 {[%clk 0:02:51]}  e6 {[%clk 0:02:55]} 2. e3 {[%clk 0:02:49]}  f5 {[%clk 0:02:56]} 3. d4 {[%clk 0:02:50]}  Nf6 {[%clk 0:02:56]} 4. Bd3 {[%clk 0:02:51]}  b6 {[%clk 0:02:55]} 5. O-O {[%clk 0:02:49]}  Bb7 {[%clk 0:02:56]} 6. c4 {[%clk 0:02:48]}  Bd6 {[%clk 0:02:55]} 7. Nc3 {[%clk 0:02:48]}  O-O {[%clk 0:02:56]} 8. Qc2 {[%clk 0:02:44]}  Bb4 {[%clk 0:02:56]} 9. d5 {[%clk 0:02:35]}  Qe8 {[%clk 0:02:52]} 10. Nb5 {[%clk 0:02:30]}  Na6 {[%clk 0:02:51]} 11. a3 {[%clk 0:02:28]}  Be7 {[%clk 0:02:50]} 12. dxe6 {[%clk 0:02:25]}  dxe6 {[%clk 0:02:50]} 13. b4 {[%clk 0:02:26]}  Qg6 {[%clk 0:02:49]} 14. Be2 {[%clk 0:02:11]}  Be4 {[%clk 0:02:28]} 15. Qb3 {[%clk 0:02:08]}  Kh8 {[%clk 0:02:27]} 16. Bb2 {[%clk 0:02:05]}  f4 {[%clk 0:02:11]} 17. exf4 {[%clk 0:01:54]}  Nh5 {[%clk 0:02:11]} 18. Be5 {[%clk 0:01:44]}  Rxf4 {[%clk 0:02:05]} 19. Qe3 {[%clk 0:01:11]}  Raf8 {[%clk 0:02:03]} 20. Bxf4 {[%clk 0:00:56]}  Nxf4 {[%clk 0:02:01]} 21. Ne1 {[%clk 0:00:36]}  Bxg2 {[%clk 0:01:57]} 22. Bh5 {[%clk 0:00:35]}  Qg5 {[%clk 0:01:53]} 23. Qg3 {[%clk 0:00:28]}  Qxh5 {[%clk 0:01:48]} 24. Ra2 {[%clk 0:00:19]}  Bb7 {[%clk 0:01:37]} 25. f3 {[%clk 0:00:15]}  Bh4 {[%clk 0:01:35]} 26. Qg4 {[%clk 0:00:15]}  Qxg4+ {[%clk 0:01:32]} 27. fxg4 {[%clk 0:00:13]}  Nh3# {[%clk 0:01:32]} 0-1


[Site "https://www.chess.com"]

[Event "Titled Tuesday Blitz November 14 Late 2023"]
[White "Guerra Tulcan, Lenin"]
[Black "Romero Ruscalleda, Josep"]
[WhiteFideId "3601382"]
[BlackFideId "2231859"]
[WhiteElo "2583"]
[BlackElo "2316"]
[Result "1-0"]
[Round "1"]
[TimeControl "180+1"]
[Date "2023.11.14"]
[WhiteClock "0:00:51"]
[BlackClock "0:01:11"]
[Board "126"]

1. e4 {[%clk 0:02:59]}  g6 {[%clk 0:03:00]} 2. d4 {[%clk 0:02:55]}  Bg7 {[%clk 0:03:01]} 3. Nf3 {[%clk 0:02:37]}  d6 {[%clk 0:03:01]} 4. Bd3 {[%clk 0:02:32]}  a6 {[%clk 0:03:00]} 5. c3 {[%clk 0:02:33]}  Nd7 {[%clk 0:02:59]} 6. a4 {[%clk 0:02:33]}  c5 {[%clk 0:02:59]} 7. O-O {[%clk 0:02:33]}  cxd4 {[%clk 0:02:57]} 8. cxd4 {[%clk 0:02:34]}  Ngf6 {[%clk 0:02:57]} 9. Nc3 {[%clk 0:02:34]}  O-O {[%clk 0:02:56]} 10. e5 {[%clk 0:02:32]}  Ne8 {[%clk 0:02:53]} 11. e6 {[%clk 0:02:27]}  fxe6 {[%clk 0:02:52]} 12. Ng5 {[%clk 0:02:27]}  Ndf6 {[%clk 0:02:47]} 13. Re1 {[%clk 0:02:25]}  Nc7 {[%clk 0:02:47]} 14. Bc4 {[%clk 0:02:17]}  Nfd5 {[%clk 0:02:46]} 15. Qb3 {[%clk 0:01:57]}  Nxc3 {[%clk 0:02:41]} 16. bxc3 {[%clk 0:01:58]}  d5 {[%clk 0:02:40]} 17. Bd3 {[%clk 0:01:55]}  Qd6 {[%clk 0:02:38]} 18. Ba3 {[%clk 0:01:49]}  Qf4 {[%clk 0:02:22]} 19. Nh3 {[%clk 0:01:49]}  Qf7 {[%clk 0:02:20]} 20. Qb6 {[%clk 0:01:49]}  Ne8 {[%clk 0:02:16]} 21. Re3 {[%clk 0:01:32]}  e5 {[%clk 0:02:12]} 22. dxe5 {[%clk 0:01:28]}  Bxh3 {[%clk 0:02:10]} 23. Rxh3 {[%clk 0:01:28]}  Bxe5 {[%clk 0:02:02]} 24. Re1 {[%clk 0:01:27]}  Bc7 {[%clk 0:01:59]} 25. Qe3 {[%clk 0:01:14]}  Nd6 {[%clk 0:01:33]} 26. Rf3 {[%clk 0:01:08]}  Nf5 {[%clk 0:01:26]} 27. Bxf5 {[%clk 0:01:07]}  gxf5 {[%clk 0:01:26]} 28. Qg5+ {[%clk 0:01:03]}  Qg6 {[%clk 0:01:19]} 29. Qxg6+ {[%clk 0:00:53]}  hxg6 {[%clk 0:01:18]} 30. Rxe7 {[%clk 0:00:53]}  Rf7 {[%clk 0:01:18]} 31. Rfe3 {[%clk 0:00:52]}  Rd8 {[%clk 0:01:15]} 32. Rxf7 {[%clk 0:00:51]}  Kxf7 {[%clk 0:01:14]} 33. Re7+ {[%clk 0:00:52]}  Kf6 {[%clk 0:01:14]} 34. Rxc7 {[%clk 0:00:52]}  d4 {[%clk 0:01:14]} 35. Be7+ {[%clk 0:00:51]}  Ke6 {[%clk 0:01:14]} 36. Bxd8 {[%clk 0:00:52]}  d3 {[%clk 0:01:14]} 37. Kf1 {[%clk 0:00:52]}  Kd6 {[%clk 0:01:11]} 38. Ke1 {[%clk 0:00:51]} 1-0


[Site "https://www.chess.com"]